fUST/lending_fUST_20240227
["ID","MTS","AMOUNT","RATE_DAILY","PERIOD"]
[315341431,1708984247910,-500.0,0.00020547,2]
[315341433,1708984247919,-2642.06,0.00020547,2]
[315341435,1708984247929,-500.0,0.00020547,2]
[315341437,1708984247938,-1172.22,0.00020547,2]
[315341439,1708984247947,-1590.17,0.00020547,2]
[315341441,1708984247956,-610.36,0.00020547,2]
[315341443,1708984247966,-579.41,0.00020547,2]
[315341445,1708984247975,-500.0,0.00020547,2]
[315341447,1708984247985,-500.0,0.00020547,2]
[315341449,1708984247994,-500.0,0.00020547,2]
[315341451,1708984248004,-500.0,0.00020547,2]
[315341453,1708984248013,-500.0,0.00020547,2]
[315341455,1708984248022,-500.0,0.00020547,2]
[315341458,1708984248033,-500.0,0.00020547,2]
[315341459,1708984248046,-8817.79,0.00020547,2]
[315341462,1708984248055,-500.0,0.00020547,2]
[315341464,1708984248064,-1418.97,0.00020547,2]
[315341466,1708984248074,-3308.92,0.00020547,2]
[315341468,1708984248083,-1141.13,0.00020547,2]
[315341470,1708984248092,-15743.28,0.00020547,2]
[315341472,1708984248101,-500.0,0.00020547,2]
[315341474,1708984248111,-1788.81,0.00020547,2]
[315341476,1708984248119,-591.94,0.00020547,2]
[315341478,1708984248128,-500.0,0.00020547,2]
[315341479,1708984248137,-1086.94,0.00020547,2]
[315341481,1708984248147,-500.0,0.00020547,2]
[315341484,1708984248156,-1619.5,0.00020547,2]
[315341485,1708984248165,-500.0,0.00020547,2]
[315341486,1708984248175,-1437.47,0.00020547,2]
[315341487,1708984248184,-1038.09,0.00020547,2]
[315341488,1708984248193,-1291.05,0.00020547,2]
[315341489,1708984248203,-500.0,0.00020547,2]
[315341490,1708984248212,-871.6,0.00020547,2]
[315341491,1708984248222,-6340.62,0.00020547,2]
[315341492,1708984248231,-604.51,0.00020547,2]
[315341493,1708984248240,-2452.37,0.00020547,2]
[315341494,1708984248250,-500.0,0.00020547,2]
[315341495,1708984248260,-505.19240896,0.00020547,2]
[315341496,1708984248269,-253.68558529,0.00020547,2]
[315341497,1708984248279,-814.48,0.00020547,2]
[315341498,1708984248289,-16225.29,0.00020547,2]
[315341499,1708984248299,-1568.18,0.00020547,2]
[315341500,1708984248308,-500.0,0.00020547,2]
[315341501,1708984248318,-534.34,0.00020547,2]
[315341502,1708984248327,-3025.4,0.00020547,2]
[315341503,1708984248336,-2134.19,0.00020547,2]
[315341504,1708984248346,-500.0,0.00020547,2]
[315341505,1708984248355,-640.79,0.00020547,2]
[315341506,1708984248364,-500.0,0.00020547,2]
[315341507,1708984248373,-500.0,0.00020547,2]
[315341508,1708984248382,-1708.13,0.00020547,2]
[315341509,1708984248391,-500.0,0.00020547,2]
[315341510,1708984248400,-500.0,0.00020547,2]
[315341511,1708984248409,-1799.77,0.00020547,2]
[315341512,1708984248418,-505.08,0.00020547,2]
[315341513,1708984248427,-1906.84,0.00020547,2]
[315341514,1708984248436,-2603.45,0.00020547,2]
[315341515,1708984248448,-2224.91,0.00020547,2]
[315341516,1708984248458,-22577.19985591,0.00020591,2]
[315341517,1708984248467,-5276.56458143,0.00020591,2]
[315341518,1708984248476,-744.53061135,0.00020591,2]
[315341519,1708984248486,-1000.0,0.00020591,2]
[315341520,1708984248496,-212.33198295,0.00020591,2]
[315341521,1708984248505,-1000.0,0.00020591,2]
[315341522,1708984248514,-1000.0,0.00020591,2]
[315341523,1708984248524,-8165.61013114,0.00020591,2]
[315341524,1708984248535,-2463.51589487,0.00020617,2]
[315341525,1708984248545,-527.48517789,0.00020689,2]
[315341526,1708984248554,-77074.71827688,0.00020711,2]
[315341527,1708984248563,-957.26527048,0.0002073,2]
[315341528,1708984248573,-50000.0,0.00020754,2]
[315341529,1708984248582,-2463.51589487,0.00020758,2]
[315341530,1708984248591,-82153.76796611,0.00020776,2]
[315341531,1708984248601,-153.0,0.00020795,2]
[315341532,1708984248610,-50000.0,0.00020797,2]
[315341533,1708984248621,-4698.57354043,0.000208,2]
[315341534,1708984248630,-508.6,0.00020821,2]
[315341535,1708984248640,-243.47873614,0.00020821,2]
[315341536,1708984248649,-500.0,0.00020821,2]
[315341537,1708984248659,-503.32932476,0.00020821,2]
[315341538,1708984248668,-500.0,0.00020821,2]
[315341539,1708984248678,-709.78,0.00020821,2]
[315341540,1708984248688,-1130.39,0.00020821,2]
[315341541,1708984248697,-500.0,0.00020821,2]
[315341542,1708984248707,-2642.06,0.00020821,2]
[315341543,1708984248717,-500.0,0.00020821,2]
[315341544,1708984248727,-1172.22,0.00020821,2]
[315341545,1708984248736,-1590.17,0.00020821,2]
[315341546,1708984248746,-610.36,0.00020821,2]
[315341547,1708984248755,-579.41,0.00020821,2]
[315341548,1708984248764,-500.0,0.00020821,2]
[315341550,1708984248773,-341.76252739,0.00020821,2]
[315341552,1708984248782,-500.0,0.00020821,2]
[315341553,1708984248791,-500.0,0.00020821,2]
[315341554,1708984248801,-500.0,0.00020821,2]
[315341555,1708984248811,-500.0,0.00020821,2]
[315341557,1708984248820,-8817.79,0.00020821,2]
[315341559,1708984248830,-500.0,0.00020821,2]
[315341561,1708984248839,-1418.97,0.00020821,2]
[315341563,1708984248848,-3308.92,0.00020821,2]
[315341564,1708984248858,-1141.13,0.00020821,2]
[315341566,1708984248867,-15743.28,0.00020821,2]
[315341568,1708984248877,-500.0,0.00020821,2]
[315341570,1708984248887,-1788.81,0.00020821,2]
[315341572,1708984248896,-591.94,0.00020821,2]
[315341574,1708984248906,-500.0,0.00020821,2]
[315341576,1708984248915,-1086.94,0.00020821,2]
[315341578,1708984248925,-500.0,0.00020821,2]
[315341580,1708984248937,-1619.5,0.00020821,2]
[315341582,1708984248946,-500.0,0.00020821,2]
[315341584,1708984248955,-1437.47,0.00020821,2]
[315341586,1708984248965,-1038.09,0.00020821,2]
[315341588,1708984248975,-1291.05,0.00020821,2]
[315341590,1708984248984,-599.32113088,0.00020821,2]
[315341592,1708984248994,-871.6,0.00020821,2]
[315341594,1708984249003,-6340.62,0.00020821,2]
[315341596,1708984249013,-604.51,0.00020821,2]
[315341598,1708984249022,-2452.37,0.00020821,2]
[315341600,1708984249031,-500.0,0.00020821,2]
[315341602,1708984249040,-814.48,0.00020821,2]
[315341604,1708984249049,-16225.29,0.00020821,2]
[315341605,1708984249059,-1568.18,0.00020821,2]
[315341607,1708984249068,-356.05453121,0.00020821,2]
[315341609,1708984249077,-534.34,0.00020821,2]
[315341611,1708984249087,-3025.4,0.00020821,2]
[315341613,1708984249096,-2134.19,0.00020821,2]
[315341615,1708984249105,-500.0,0.00020821,2]
[315341617,1708984249114,-640.79,0.00020821,2]
[315341619,1708984249124,-500.0,0.00020821,2]
[315341621,1708984249133,-500.0,0.00020821,2]
[315341623,1708984249141,-1708.13,0.00020821,2]
[315341625,1708984249151,-500.0,0.00020821,2]
[315341627,1708984249159,-500.0,0.00020821,2]
[315341629,1708984249168,-1799.77,0.00020821,2]
[315341630,1708984249178,-1906.84,0.00020821,2]
[315341632,1708984249187,-2603.45,0.00020821,2]
[315341634,1708984249197,-2224.91,0.00020821,2]
[315341636,1708984249206,-45990.85622713,0.0002084,2]
[315341654,1708984249387,-4009.14377287,0.0002084,2]
[315341656,1708984249397,-8918.67098343,0.00020851,2]
[315341658,1708984249408,-36800.2436477,0.00020851,2]
[315341664,1708984249460,-500.0,0.00019178,2]
[315341666,1708984249469,-4281.08536887,0.00020851,2]
[315341668,1708984249478,-19067.05933411,0.00020883,2]
[315341671,1708984249502,-442.24473459,0.00019178,2]
[315341673,1708984249511,-500.0,0.00019178,2]
[315341675,1708984249522,-8333.63564,0.00020883,2]
[315341677,1708984249535,-3140.63854,0.00020883,2]
[315341687,1708984249643,-219.91483467,0.00019177,2]
[315341690,1708984249653,-375.57724917,0.00019177,2]
[315341691,1708984249663,-246.45824002,0.00019177,2]
[315341693,1708984249672,-86.13663731,0.00019178,2]
[315345890,1708985126068,2000.0,0.00021,30]
[315345891,1708985126921,2000.0,0.0002101,30]
[315345892,1708985127626,2000.0,0.0002102,30]
[315345893,1708985128124,3489.290221,0.0002103,30]
[315345941,1708985434860,-2717.31010196,0.00018105,2]
[315345943,1708985434870,-24900.0,0.00018106,2]
[315345945,1708985434879,-323.55515323,0.00018425,2]
[315345947,1708985434890,-1551.37609991,0.0001893,2]
[315345949,1708985434899,-273.38,0.00019168,3]
[315345951,1708985434908,-820.14,0.00019168,3]
[315345953,1708985434917,-1213.24953419,0.00019177,2]
[315345955,1708985434926,-501.97542393,0.00019178,2]
[315345957,1708985434936,-500.0,0.00019178,2]
[315345959,1708985434945,-500.0,0.00019178,2]
[315345961,1708985434954,-528.2173094,0.00019178,2]
[315345963,1708985434964,-500.0,0.00019178,2]
[315345965,1708985434973,-500.0,0.00019178,2]
[315345967,1708985434983,-500.0,0.00019178,2]
[315345969,1708985434991,-500.0,0.00019178,2]
[315345971,1708985435003,-500.0,0.00019178,2]
[315345972,1708985435013,-500.0,0.00019178,2]
[315345974,1708985435023,-500.0,0.00019178,2]
[315345976,1708985435033,-500.0,0.00019178,2]
[315345978,1708985435043,-500.0,0.00019178,2]
[315345980,1708985435052,-187.73483971,0.00019178,2]
[315345982,1708985435062,-500.0,0.00019178,2]
[315345984,1708985435073,-500.0,0.00019178,2]
[315345986,1708985435083,-500.0,0.00019178,2]
[315345988,1708985435092,-500.0,0.00019178,2]
[315345990,1708985435102,-225.58320984,0.00019178,2]
[315345992,1708985435112,-500.0,0.00019178,2]
[315345994,1708985435123,-581.61,0.00019178,2]
[315345996,1708985435133,-210.06534711,0.00019178,2]
[315345998,1708985435142,-500.0,0.00019178,2]
[315346000,1708985435152,-500.0,0.00019178,2]
[315346002,1708985435162,-500.0,0.00019178,2]
[315346004,1708985435172,-500.0,0.00019178,2]
[315346006,1708985435182,-500.0,0.00019178,2]
[315346008,1708985435192,-500.0,0.00019178,2]
[315346010,1708985435201,-500.0,0.00019178,2]
[315346012,1708985435210,-159.02038948,0.00019178,2]
[315346014,1708985435220,-500.0,0.00019178,2]
[315346017,1708985435236,-501.51957996,0.00019178,2]
[315346019,1708985435251,-575.70592175,0.00019178,2]
[315346021,1708985435261,-500.0,0.00019178,2]
[315346023,1708985435272,-500.0,0.00019178,2]
[315346025,1708985435281,-500.86543318,0.00019178,2]
[315346027,1708985435291,-500.0,0.00019178,2]
[315346030,1708985435301,-371.60145498,0.00019178,2]
[315346032,1708985435311,-500.0,0.00019178,2]
[315346034,1708985435320,-629.6441881,0.00019178,2]
[315346036,1708985435330,-582.24951827,0.00019178,2]
[315346038,1708985435340,-500.0,0.00019178,2]
[315346040,1708985435350,-500.0,0.00019178,2]
[315346042,1708985435361,-500.0,0.00019178,2]
[315346044,1708985435371,-500.0,0.00019178,2]
[315346046,1708985435381,-500.0,0.00019178,2]
[315346048,1708985435391,-551.97,0.00019178,2]
[315346050,1708985435400,-254.90913793,0.00019178,2]
[315346052,1708985435416,-297.06086207,0.00019178,2]
[315346054,1708985435425,-551.97,0.00019178,2]
[315346056,1708985435435,-551.97,0.00019178,2]
[315346058,1708985435445,-551.97,0.00019178,2]
[315346060,1708985435455,-551.97,0.00019178,2]
[315346061,1708985435465,-500.0,0.00019178,2]
[315346064,1708985435476,-500.0,0.00019178,2]
[315346065,1708985435485,-500.0,0.00019178,2]
[315346068,1708985435496,-581.87051322,0.00019178,2]
[315346070,1708985435506,-500.0,0.00019178,2]
[315346071,1708985435516,-500.0,0.00019178,2]
[315346074,1708985435526,-582.28209769,0.00019178,2]
[315346075,1708985435536,-500.0,0.00019178,2]
[315346077,1708985435546,-197.7493803,0.00019178,2]
[315346079,1708985435557,-589.03517305,0.00019178,2]
[315346081,1708985435567,-503.93229998,0.00019178,2]
[315346083,1708985435578,-500.32473079,0.00019178,2]
[315346085,1708985435588,-500.0,0.00019178,2]
[315346087,1708985435598,-2880.25,0.00019178,2]
[315346089,1708985435608,-500.0,0.00019178,2]
[315346107,1708985435776,-1235.33,0.00019178,2]
[315346109,1708985435787,-500.0,0.00019178,2]
[315346111,1708985435798,-500.0,0.00019178,2]
[315346113,1708985435808,-500.0,0.00019178,2]
[315346115,1708985435825,-1693.67,0.00019178,2]
[315346117,1708985435835,-500.0,0.00019178,2]
[315346119,1708985435845,-1106.21,0.00019178,2]
[315346121,1708985435856,-500.0,0.00019178,2]
[315346122,1708985435866,-648.04,0.00019178,2]
[315346124,1708985435875,-500.0,0.00019178,2]
[315346126,1708985435885,-500.0,0.00019178,2]
[315346128,1708985435896,-1183.46,0.00019178,2]
[315346131,1708985435906,-436.38596595,0.00019178,2]
[315346133,1708985435916,-500.0,0.00019178,2]
[315346134,1708985435926,-500.829993,0.00019178,2]
[315346136,1708985435935,-501.10864592,0.00019178,2]
[315346138,1708985435945,-500.0,0.00019178,2]
[315346140,1708985435954,-500.0,0.00019178,2]
[315346142,1708985435964,-500.0,0.00019178,2]
[315346144,1708985435974,-500.0,0.00019178,2]
[315346146,1708985435983,-500.0,0.00019178,2]
[315346148,1708985435994,-500.0,0.00019178,2]
[315346150,1708985436003,-500.0,0.00019178,2]
[315346152,1708985436014,-510.65,0.00019178,2]
[315346154,1708985436023,-171.64068098,0.00019178,2]
[315346156,1708985436033,-500.0,0.00019178,2]
[315346158,1708985436043,-418.52836242,0.00019178,2]
[315346160,1708985436053,-500.0,0.00019178,2]
[315346162,1708985436063,-500.0,0.00019178,2]
[315346164,1708985436073,-503.40024603,0.00019178,2]
[315346166,1708985436084,-500.0,0.00019178,2]
[315346168,1708985436095,-500.0,0.00019178,2]
[315346170,1708985436104,-500.0,0.00019178,2]
[315346172,1708985436114,-417.97011128,0.00019178,2]
[315346174,1708985436124,-500.0,0.00019178,2]
[315346176,1708985436133,-500.0,0.00019178,2]
[315346178,1708985436143,-500.0,0.00019178,2]
[315346180,1708985436154,-500.0,0.00019178,2]
[315346182,1708985436163,-500.0,0.00019178,2]
[315346184,1708985436173,-500.0,0.00019178,2]
[315346186,1708985436185,-500.0,0.00019178,2]
[315346188,1708985436198,-500.0,0.00019178,2]
[315346190,1708985436207,-500.0,0.00019178,2]
[315346192,1708985436217,-500.0,0.00019178,2]
[315346194,1708985436227,-502.38633586,0.00019178,2]
[315346196,1708985436236,-500.0,0.00019178,2]
[315346198,1708985436246,-500.0,0.00019178,2]
[315346200,1708985436255,-500.0,0.00019178,2]
[315346202,1708985436264,-500.0,0.00019178,2]
[315346204,1708985436274,-500.0,0.00019178,2]
[315346206,1708985436283,-500.0,0.00019178,2]
[315346208,1708985436292,-500.0,0.00019178,2]
[315346210,1708985436301,-500.0,0.00019178,2]
[315346212,1708985436311,-500.0,0.00019178,2]
[315346214,1708985436320,-500.0,0.00019178,2]
[315346216,1708985436330,-500.0,0.00019178,2]
[315346218,1708985436339,-1544.97,0.00019178,2]
[315346220,1708985436349,-500.0,0.00019178,2]
[315346222,1708985436358,-500.0,0.00019178,2]
[315346224,1708985436368,-500.0,0.00019178,2]
[315346226,1708985436378,-500.0,0.00019178,2]
[315346228,1708985436387,-502.13232332,0.00019178,2]
[315346230,1708985436396,-329.06892386,0.00019178,2]
[315346232,1708985436406,-569.52,0.00019178,2]
[315346234,1708985436415,-501.79848938,0.00019178,2]
[315346236,1708985436424,-3615.0,0.00019178,2]
[315346238,1708985436433,-1728.11,0.00019178,2]
[315346240,1708985436442,-185.15827025,0.00019178,2]
[315346242,1708985436451,-500.0,0.00019178,2]
[315346243,1708985436461,-500.0,0.00019178,2]
[315346246,1708985436471,-16459.07,0.00019178,2]
[315346248,1708985436481,-1183.28,0.00019178,2]
[315346250,1708985436491,-500.0,0.00019178,2]
[315346252,1708985436501,-500.0,0.00019178,2]
[315346254,1708985436511,-500.0,0.00019178,2]
[315346256,1708985436521,-1393.14,0.00019178,2]
[315346258,1708985436530,-500.0,0.00019178,2]
[315346260,1708985436539,-500.0,0.00019178,2]
[315346262,1708985436548,-500.0,0.00019178,2]
[315346263,1708985436558,-1790.68,0.00019178,2]
[315346266,1708985436567,-500.0,0.00019178,2]
[315346267,1708985436577,-229.23019617,0.00019178,2]
[315346269,1708985436587,-500.0,0.00019178,2]
[315346271,1708985436596,-6510.06,0.00019178,2]
[315346273,1708985436605,-837.95,0.00019178,2]
[315346275,1708985436615,-500.0,0.00019178,2]
[315346278,1708985436624,-500.0,0.00019178,2]
[315346280,1708985436634,-1072.96,0.00019178,2]
[315346281,1708985436643,-3044.48,0.00019178,2]
[315346283,1708985436653,-1384.6,0.00019178,2]
[315346285,1708985436663,-836.22,0.00019178,2]
[315346287,1708985436672,-500.0,0.00019178,2]
[315346289,1708985436682,-609.18,0.00019178,2]
[315346291,1708985436691,-500.35866528,0.00019178,2]
[315346293,1708985436701,-500.0,0.00019178,2]
[315346295,1708985436711,-587.39,0.00019178,2]
[315346297,1708985436720,-837.42,0.00019178,2]
[315346299,1708985436729,-509.02416271,0.00019178,2]
[315346301,1708985436738,-500.0,0.00019178,2]
[315346303,1708985436749,-500.0,0.00019178,2]
[315346305,1708985436758,-500.0,0.00019178,2]
[315346307,1708985436768,-1636.01,0.00019178,2]
[315346309,1708985436777,-500.0,0.00019178,2]
[315346311,1708985436786,-500.0,0.00019178,2]
[315346313,1708985436796,-500.0,0.00019178,2]
[315346315,1708985436805,-16398.14,0.00019178,2]
[315346318,1708985436817,-2350.52,0.00019178,2]
[315346320,1708985436826,-500.0,0.00019178,2]
[315346322,1708985436835,-500.0,0.00019178,2]
[315346323,1708985436846,-3146.89,0.00019178,2]
[315346325,1708985436855,-500.0,0.00019178,2]
[315346327,1708985436865,-500.0,0.00019178,2]
[315346329,1708985436874,-500.0,0.00019178,2]
[315346331,1708985436884,-500.0,0.00019178,2]
[315346333,1708985436894,-500.0,0.00019178,2]
[315346335,1708985436904,-1725.21,0.00019178,2]
[315346337,1708985436914,-2517.74,0.00019178,2]
[315346339,1708985436924,-500.0,0.00019178,2]
[315346341,1708985436933,-500.0,0.00019178,2]
[315346343,1708985436942,-500.0,0.00019178,2]
[315346345,1708985436951,-500.0,0.00019178,2]
[315346347,1708985436960,-1992.99,0.00019178,2]
[315346349,1708985436969,-500.0,0.00019178,2]
[315346351,1708985436979,-1000.0,0.00019178,2]
[315346353,1708985436988,-500.0,0.00019178,2]
[315346355,1708985436999,-500.0,0.00019178,2]
[315346357,1708985437008,-500.0,0.00019178,2]
[315346359,1708985437017,-2352.08,0.00019178,2]
[315346361,1708985437026,-500.0,0.00019178,2]
[315346363,1708985437035,-1897.11,0.00019178,2]
[315346365,1708985437044,-623.53895881,0.00019178,2]
[315346367,1708985437053,-1000.0,0.00019178,2]
[315346369,1708985437061,-543.31285923,0.00019178,2]
[315346371,1708985437071,-500.0,0.00019178,2]
[315346373,1708985437080,-500.0,0.00019178,2]
[315346375,1708985437089,-500.0,0.00019178,2]
[315346377,1708985437098,-500.0,0.00019178,2]
[315346379,1708985437107,-500.0,0.00019178,2]
[315346381,1708985437116,-501.52534223,0.00019178,2]
[315346383,1708985437125,-500.0,0.00019178,2]
[315346385,1708985437133,-500.0,0.00019178,2]
[315346387,1708985437142,-9961.08,0.00019178,2]
[315346388,1708985437152,-165.858258,0.00019178,2]
[315346390,1708985437161,-173.182397,0.00019178,2]
[315346392,1708985437170,-166.666666,0.00019178,2]
[315346394,1708985437179,-535.63750162,0.00019352,2]
[315346396,1708985437188,-551.97,0.00019451,2]
[315346398,1708985437197,-551.97,0.00019451,2]
[315346400,1708985437206,-551.97,0.00019451,2]
[315346402,1708985437215,-551.97,0.00019451,2]
[315346404,1708985437224,-501.47582872,0.00019452,2]
[315346406,1708985437233,-500.0,0.00019452,2]
[315346408,1708985437242,-503.94397976,0.00019452,2]
[315346410,1708985437253,-500.0,0.00019452,2]
[315346412,1708985437262,-500.0,0.00019452,2]
[315346414,1708985437271,-500.0,0.00019452,2]
[315346416,1708985437280,-500.0,0.00019452,2]
[315346418,1708985437289,-500.0,0.00019452,2]
[315346420,1708985437298,-500.0,0.00019452,2]
[315346422,1708985437307,-581.61,0.00019452,2]
[315346424,1708985437316,-500.0,0.00019452,2]
[315346426,1708985437325,-500.0,0.00019452,2]
[315346428,1708985437334,-309.24117467,0.00019452,2]
[315346430,1708985437343,-413.86336269,0.00019452,2]
[315346432,1708985437352,-449.10144349,0.00019452,2]
[315346434,1708985437361,-432.44409481,0.00019452,2]
[315346436,1708985437370,-500.0,0.00019452,2]
[315346438,1708985437379,-500.0,0.00019452,2]
[315346440,1708985437388,-478.4437147,0.00019452,2]
[315346442,1708985437398,-500.0,0.00019452,2]
[315346444,1708985437407,-500.0,0.00019452,2]
[315346446,1708985437415,-283.71366824,0.00019452,2]
[315346448,1708985437424,-262.021544,0.00019452,2]
[315346450,1708985437433,-500.55004341,0.00019452,2]
[315346452,1708985437443,-500.0,0.00019452,2]
[315346454,1708985437452,-500.0,0.00019452,2]
[315346456,1708985437461,-500.0,0.00019452,2]
[315346458,1708985437470,-500.0,0.00019452,2]
[315346460,1708985437479,-500.0,0.00019452,2]
[315346462,1708985437489,-502.00218481,0.00019452,2]
[315346464,1708985437500,-500.0,0.00019452,2]
[315346466,1708985437509,-500.0,0.00019452,2]
[315346468,1708985437519,-500.0,0.00019452,2]
[315346470,1708985437528,-2880.25,0.00019452,2]
[315346472,1708985437537,-500.0,0.00019452,2]
[315346474,1708985437546,-1235.33,0.00019452,2]
[315346476,1708985437555,-500.0,0.00019452,2]
[315346478,1708985437564,-500.0,0.00019452,2]
[315346480,1708985437573,-437.3151243,0.00019452,2]
[315346482,1708985437582,-1693.67,0.00019452,2]
[315346484,1708985437591,-1106.21,0.00019452,2]
[315346486,1708985437600,-500.0,0.00019452,2]
[315346488,1708985437609,-648.04,0.00019452,2]
[315346490,1708985437619,-500.0,0.00019452,2]
[315346492,1708985437628,-500.0,0.00019452,2]
[315346494,1708985437638,-1183.46,0.00019452,2]
[315346496,1708985437647,-500.0,0.00019452,2]
[315346498,1708985437656,-500.0,0.00019452,2]
[315346500,1708985437665,-500.0,0.00019452,2]
[315346502,1708985437673,-500.0,0.00019452,2]
[315346504,1708985437683,-500.0,0.00019452,2]
[315346506,1708985437692,-500.0,0.00019452,2]
[315346508,1708985437701,-500.0,0.00019452,2]
[315346510,1708985437711,-510.65,0.00019452,2]
[315346512,1708985437720,-500.0,0.00019452,2]
[315346514,1708985437729,-500.0,0.00019452,2]
[315346516,1708985437738,-500.0,0.00019452,2]
[315346518,1708985437749,-500.0,0.00019452,2]
[315346520,1708985437758,-501.57235247,0.00019452,2]
[315346522,1708985437767,-500.0,0.00019452,2]
[315346524,1708985437776,-500.0,0.00019452,2]
[315346526,1708985437785,-500.0,0.00019452,2]
[315346528,1708985437795,-500.0,0.00019452,2]
[315346530,1708985437805,-500.0,0.00019452,2]
[315346532,1708985437816,-500.0,0.00019452,2]
[315346534,1708985437825,-502.2713384,0.00019452,2]
[315346536,1708985437834,-500.0,0.00019452,2]
[315346538,1708985437843,-500.0,0.00019452,2]
[315346540,1708985437853,-500.0,0.00019452,2]
[315346542,1708985437862,-500.0,0.00019452,2]
[315346544,1708985437871,-500.0,0.00019452,2]
[315346546,1708985437881,-172.04761987,0.00019452,2]
[315346548,1708985437890,-210.33082112,0.00019452,2]
[315346551,1708985437906,-289.66917888,0.00019452,2]
[315346553,1708985437914,-500.0,0.00019452,2]
[315346555,1708985437923,-630.67326243,0.00019452,2]
[315346557,1708985437932,-500.0,0.00019452,2]
[315346559,1708985437941,-1544.97,0.00019452,2]
[315346561,1708985437950,-500.0,0.00019452,2]
[315346563,1708985437959,-354.86821839,0.00019452,2]
[315346565,1708985437968,-500.0,0.00019452,2]
[315346567,1708985437976,-569.52,0.00019452,2]
[315346568,1708985437985,-2725.71848293,0.00019452,2]
[315346571,1708985437999,-889.28151707,0.00019452,2]
[315346573,1708985438008,-325.18141553,0.00019452,2]
[315346643,1708985438634,-500.0,0.00019178,2]
[315346644,1708985438644,-500.0,0.00019178,2]
[315346645,1708985438653,-500.0,0.00019178,2]
[315346646,1708985438662,-1402.92858447,0.00019452,2]
[315346647,1708985438672,-500.0,0.00019452,2]
[315346648,1708985438681,-16459.07,0.00019452,2]
[315346649,1708985438690,-1183.28,0.00019452,2]
[315346650,1708985438700,-500.0,0.00019452,2]
[315346651,1708985438710,-500.0,0.00019452,2]
[315346652,1708985438719,-500.0,0.00019452,2]
[315346653,1708985438729,-1393.14,0.00019452,2]
[315346654,1708985438738,-500.0,0.00019452,2]
[315346655,1708985438748,-500.0,0.00019452,2]
[315346656,1708985438757,-500.0,0.00019452,2]
[315346657,1708985438766,-1790.68,0.00019452,2]
[315346658,1708985438776,-500.0,0.00019452,2]
[315346659,1708985438785,-596.53827503,0.00019452,2]
[315346660,1708985438794,-6510.06,0.00019452,2]
[315346661,1708985438805,-837.95,0.00019452,2]
[315346662,1708985438817,-500.0,0.00019452,2]
[315346663,1708985438827,-500.0,0.00019452,2]
[315346665,1708985438836,-1072.96,0.00019452,2]
[315346667,1708985438845,-3044.48,0.00019452,2]
[315346669,1708985438854,-1384.6,0.00019452,2]
[315346671,1708985438863,-836.22,0.00019452,2]
[315346673,1708985438872,-500.0,0.00019452,2]
[315346675,1708985438882,-609.18,0.00019452,2]
[315346677,1708985438891,-500.0,0.00019452,2]
[315346679,1708985438901,-587.39,0.00019452,2]
[315346681,1708985438910,-837.42,0.00019452,2]
[315346683,1708985438919,-1636.01,0.00019452,2]
[315346685,1708985438928,-500.0,0.00019452,2]
[315346687,1708985438937,-500.0,0.00019452,2]
[315346689,1708985438946,-16398.14,0.00019452,2]